Cogmind - Beta 13 @@@ ROGUE MODE // 2024.05.02 @ 16:29:59 Player: Barbarossa Result: Destroyed by G-34 Mercenary with Small Laser Performance ------------- Evolutions (1) 500 Regions Visited (2) 400 Robots Destroyed (28) 140 Value Destroyed (688) 688 Prototype IDs (0) 0 Alien Tech Used (0) 0 Bonus (0) 0 TOTAL SCORE: 1728 Bonus ------- None Cogmind --------- Core Integrity 0/400 Matter 300/300 Energy 100/100 System Corruption 0% Temperature Cool (6) Movement Core (400) Ox7 Location -9/Materials Parts ------- > --- POWER (1) -------- (None) > --- PROPULSION (4) --- (None) > --- UTILITY (2) ------ Large Storage Unit > --- WEAPON (2) ------- Particle Gun > --- INVENTORY (15) --- Hover Unit Hover Unit Signal Interpreter Targeting Computer Targeting Computer Medium Armor Plating Medium Armor Plating Small Laser Peak State ------------ > --- POWER ------------ Light Ion Engine > --- PROPULSION ------- Wheel Wheel Wheel Wheel > --- UTILITY ---------- Improved Heat Sink Large Storage Unit > --- WEAPON ----------- EM Pulse Gun EM Pulse Gun > --- INVENTORY -------- Light Ion Engine Hover Unit Hover Unit Signal Interpreter Targeting Computer Targeting Computer Medium Armor Plating Medium Armor Plating [Rating: 12] Favorites ----------- Power Light Ion Engine Engine Light Ion Engine Propulsion Hover Unit Leg Aluminum Leg Wheel Wheel Hover Unit Hover Unit Utility Small Storage Unit Device Sensor Array Storage Small Storage Unit Weapon EM Pulse Gun Energy Gun EM Pulse Gun Ballistic Gun Assault Rifle Build | -11 -10 -9 ------- Run | Yrd Mat Mat Slots Evolved 2 | . . 2 Power . | . . . Propulsion 2 | . . 2 Utility . | . . . Weapon . | . . . Parts Attached 25 | 2 16 7 Power 3 | . 2 1 Engine 3 | . 2 1 Core . | . . . Reactor . | . . . Propulsion 12 | 2 7 3 Treads . | . . . Leg . | . . . Wheel 6 | 2 1 3 Hover 6 | . 6 . Flight . | . . . Utility 3 | . 2 1 Device 2 | . 2 . Storage 1 | . . 1 Processor . | . . . Hackware . | . . . Protection . | . . . Artifact . | . . . Weapon 7 | . 5 2 Energy Gun 7 | . 5 2 Energy Cannon . | . . . Ballistic Gun . | . . . Ballistic Cannon . | . . . Launcher . | . . . Special Weapon . | . . . Impact Weapon . | . . . Slashing Weapon . | . . . Piercing Weapon . | . . . Special Melee Weapon . | . . . Unidentified Prototypes . | . . . Parts Lost 18 | . 8 10 Power 4 | . 2 2 Propulsion 7 | . 3 4 Utility 2 | . 1 1 Weapon 5 | . 2 3 Highest Loss Streak 10 | . 6 10 To Critical Strikes . | . . . Average Slot Usage (%) 89 | . 93 65 Engine 12 | . 13 6 Wheel 5 | . 2 20 Hover 18 | . 20 1 Device 12 | . 13 8 Storage 13 | . 14 11 Energy Gun 20 | . 21 17 Ballistic Gun 5 | . 6 . Naked Turns . | . . . Heaviest Build 28 | 12 13 28 Greatest Support 40 | 20 20 40 Greatest Overweight (x) 7 | . 2 7 Average Overweight (x) 1 | . 1 . Largest Inventory Capacity 15 | 8 8 15 Average Capacity 8 | 8 8 14 Most Carried 9 | 8 8 9 Average Carried 7 | 6 7 7 Final Capacity 15 | 8 8 15 Final Carried 8 | 6 8 8 Class Distribution -------------------- 100% | Mutant Dominant Class ---------------- Mutant | -10/Materials Mutant | -9/Materials Resources | -11 -10 -9 ----------- Run | Yrd Mat Mat Matter Collected 474 | 206 248 20 Remotely . | . . . Salvage Created 985 | 11 731 243 Parts 63 | 4 50 9 Haulers Intercepted 2 | . 2 . Recyclers Shooed . | . . . Parts Field Recycled . | . . . Retrieved Matter . | . . . Parts Self-Destructed . | . . . Prevented . | . . . Kills | -11 -10 -9 ------- Run | Yrd Mat Mat Combat Hostiles Destroyed 17 | . 12 5 Guns 16 | . 11 5 AOE 1 | . 1 . Classes Destroyed 9 | 1 7 1 Worker 1 | . 1 . Builder 2 | . 2 . Tunneler 1 | 1 . . Hauler 2 | . 2 . Operator 2 | . 2 . Watcher 3 | . 3 . Swarmer 3 | . 3 . Grunt 13 | . 9 4 Sentry 1 | . . 1 Best Kill Streak 5 | 1 5 2 Combat Bots Only 4 | . 4 2 Max Kills in Single Turn 2 | 1 2 1 Gunslinging . | . . . Exploded 1 | . 1 . Melee . | . . . Uniques/NPCs Destroyed . | . . . Combat | -11 -10 -9 -------- Run | Yrd Mat Mat Hostile Shots Fired 167 | . 71 96 Missed 41 | . 17 24 Damage Taken 1614 | . 620 994 Core 491 | . 86 405 Absorbed by Shields . | . . . Core Remaining (%) 82 | 100 65 . Volleys Fired 84 | 2 52 30 Largest 2 | 2 2 2 Hottest 80 | 60 80 80 Shots Fired 141 | 4 99 38 Gun 141 | 4 99 38 Cannon . | . . . Launcher . | . . . Special . | . . . Kinetic 29 | 2 27 . Thermal 22 | . . 22 Explosive . | . . . Electromagnetic 90 | 2 72 16 Robot Hit Streak 13 | 1 7 13 Robot Miss Streak 5 | 3 5 2 Penetration Max . | . . . Secondary Targets 2 | . 1 1 Max Gunslinging Chain 1 | . 1 1 Shots Hit Robots 82 | 1 51 30 Core Hits 45 | 1 31 13 Critical Kills . | . . . Critical Parts Destroyed . | . . . Critical Strikes 2 | . . 2 Corrupt 2 | . . 2 Melee Attacks . | . . . Impact . | . . . Slashing . | . . . Piercing . | . . . Sneak Attacks . | . . . Combat Hostiles . | . . . Follow-up Attacks . | . . . Damage Inflicted 1293 | 11 910 372 Guns 1139 | 11 756 372 Cannons . | . . . Explosions 154 | . 154 . Melee . | . . . Ramming . | . . . Kinetic 191 | 11 180 . Thermal 381 | . 154 227 Explosive . | . . . Electromagnetic 721 | . 576 145 Impact . | . . . Slashing . | . . . Piercing . | . . . Highest Corruption 1 | . 1 . Average Corruption 1 | . 1 . Corruption Purged . | . . . Corruption Blocked . | . . . Effects 2 | . 2 . Energy Discharges 2 | . 2 . Overload Shots . | . . . Overflow Damage . | . . . Projectiles . | . . . Explosions . | . . . Melee . | . . . Knockbacks . | . . . Impact . | . . . Kinetic . | . . . Secondary . | . . . Self-Inflicted Damage 27 | . 27 . Shots 1 | . 1 . Rammed . | . . . Targets Rammed . | . . . Kicked . | . . . Crushed . | . . . Highest Temperature 242 | . 242 22 Average Temperature 62 | . 69 7 Received Heat Transfer 735 | . 261 474 Siege Activations . | . . . Robots Corrupted . | . . . Combat Hostiles . | . . . Parts Fried . | . . . Impact Corruptions . | . . . Robots Melted . | . . . Combat Hostiles . | . . . Parts Melted 2 | . 1 1 Heat Transferred 774 | . 250 524 Parts Sabotaged . | . . . Parts Stolen . | . . . Parts Stripped . | . . . Power Chain Reactions 3 | . 3 . Alert | -11 -10 -9 ------- Run | Yrd Mat Mat Peak Influence 222 | 5 222 178 Initial 53 | . 3 53 Average 107 | 2 107 123 Maximum Alert Level 1 | . 1 . Low Security (%) 84 | 100 81 100 Level 1 15 | . 18 . Level 2 . | . . . Level 3 . | . . . Level 4 . | . . . Level 5 . | . . . High Security . | . . . Max Security . | . . . Squads Dispatched 4 | . 2 2 Investigation 2 | . 1 1 Extermination . | . . . Reinforcement 2 | . 1 1 Assault . | . . . Garrison . | . . . Intercept . | . . . Searches Triggered . | . . . Construction Impeded . | . . . Haulers Reinforced . | . . . Active Scanning Responses . | . . . Cargo Convoy Interrupts . | . . . Stealth | -11 -10 -9 --------- Run | Yrd Mat Mat Distress Signals 2 | . 1 1 Communications Jammed . | . . . Distress Signals . | . . . Times Spotted 36 | . 20 16 Peak Tracking Total 6 | . 4 6 Tactical Retreats 3 | . . 3 Traps | -11 -10 -9 ------- Run | Yrd Mat Mat Traps Triggered 3 | . 2 1 Indirectly . | . . . Trap Hack Attempts . | . . . Triggered . | . . . Disarmed . | . . . Reprogrammed . | . . . Reused . | . . . Traps Extracted . | . . . Installed . | . . . Triggered . | . . . Machines | -11 -10 -9 ---------- Run | Yrd Mat Mat Machines Disabled 3 | . 3 . Max in Single Turn 1 | . 1 . Machines Repaired . | . . . Machines Dismantled . | . . . Machines Sabotaged . | . . . Overloaded Fab Kills . | . . . Hacking | -11 -10 -9 --------- Run | Yrd Mat Mat Machines Accessed 1 | . 1 . Terminals 1 | . 1 . Fabricators . | . . . Repair Stations . | . . . Recycling Units . | . . . Scanalyzers . | . . . Garrison Access . | . . . Total Hacks 3 | . 3 . Successful . | . . . Failed 3 | . 3 . Catastrophic 1 | . 1 . Database Lockouts . | . . . Manual . | . . . Terminals 3 | . 3 . Fabricators . | . . . Repair Stations . | . . . Recycling Units . | . . . Scanalyzers . | . . . Garrison Access . | . . . Terminal Hacks . | . . . Fabricator Hacks . | . . . Repair Station Hacks . | . . . Recycling Unit Hacks . | . . . Scanalyzer . | . . . Garrison Access Hacks . | . . . Unauthorized Hacks . | . . . Terminals . | . . . Fabricators . | . . . Repair Stations . | . . . Recycling Units . | . . . Scanalyzers . | . . . Garrison Access . | . . . Data Cores Recovered 1 | . 1 . Used 1 | . 1 . Hacking Detections 1 | . 1 . Full Trace Events 1 | . 1 . Feedback Events . | . . . Feedback Blocked . | . . . Robot Schematics Acquired . | . . . Robots Built . | . . . Authchips . | . . . Time . | . . . Total Robot Build Rating . | . . . Part Schematics Acquired . | . . . Parts Built . | . . . Authchips . | . . . Time . | . . . Total Part Build Rating . | . . . Parts Repaired . | . . . Time . | . . . Parts Recycled . | . . . Recycled Matter . | . . . Retrieved Matter . | . . . Retrieved Components . | . . . Parts Scanalyzed . | . . . Part Schematics Acquired . | . . . Parts Damaged . | . . . Bothacking | -11 -10 -9 ------------ Run | Yrd Mat Mat Used RIF Installer . | . . . Robots Hacked . | . . . Non-combat . | . . . Combat . | . . . Robot Hacks Applied . | . . . Relay Couplers Released . | . . . Fabnet Peak Effective % . | . . . Robots Rewired . | . . . Allies Hacked . | . . . Hacks Repelled . | . . . Allies | -11 -10 -9 -------- Run | Yrd Mat Mat Total Allies . | . . . Largest Group . | . . . Highest-Rated Group . | . . . Highest-Rated Ally . | . . . Total Orders . | . . . Ally Attacks . | . . . Total Damage . | . . . Kills . | . . . Allies Corrupted . | . . . Allies Melted . | . . . Intel | -11 -10 -9 ------- Run | Yrd Mat Mat Robot Analysis Total . | . . . Derelict Logs Recovered . | . . . Drone Launches . | . . . Drone Recoveries . | . . . Exploration | -11 -10 -9 ------------- Run | Yrd Mat Mat Turns Passed 1412 | 26 1191 195 Spaces Moved 923 | 13 800 110 Core 9 | . 2 7 Treads . | . . . Legs 10 | 10 . . Wheels 244 | 3 138 103 Hover 660 | . 660 . Flight . | . . . Fastest Speed 80 | 80 80 80 Average Speed 119 | 110 122 102 Slowest Speed 400 | 120 180 400 Overloaded Moves . | . . . Propulsion Burnouts . | . . . Robots Hopped . | . . . Cave-ins Triggered . | . . . Exploration Rate (%) 33 | 2 82 16 Regions Visited 2 Branch Regions . Pre-discovered Areas . | . . . Known Exits Taken . | . . . Unknown Exits Taken 2 | 1 1 . Scrap Searched . | . . . Spaces Dug . | . . . Terrain Destroyed 8 | . 8 . Melee . | . . . Projectile . | . . . AOE 8 | . 8 . Terrain Rammed . | . . . Walls Destroyed . | . . . Machines Disabled . | . . . Actions | -11 -10 -9 --------- Run | Yrd Mat Mat Total 1088 | 20 914 154 Wait 25 | . 23 2 Move 921 | 12 799 110 Hop . | . . . Pick Up 20 | 2 14 4 Fast Attach 7 | . 6 1 Attach 10 | . 6 4 Detach . | . . . Swap 8 | 2 4 2 Drop 13 | 2 10 1 Fire 84 | 2 52 30 Melee . | . . . Ram . | . . . Kick . | . . . Crush . | . . . Escape Stasis . | . . . Rewire . | . . . Trap . | . . . Miscellaneous . | . . . Route ------- -11/Scrapyard -10/Materials (discovered 4 exits: [*Mat x3] / [*Min]) -9/Materials History --------- Turn | Location | Event 1 | -11/Scrapyard | Discovered new exit (range 0) 27 | -11/Scrapyard | Entered Materials 105 | -10/Materials | Discovered new exit (range 14) 309 | -10/Materials | Discovered new exit (range 14) 318 | -10/Materials | Build established: Mutant 567 | -10/Materials | Discovered new exit (range 6) 571 | -10/Materials | Discovered new exit (range 15) 921 | -10/Materials | Lost 6 parts (1p2n1u2w) 1218 | -10/Materials | Entered another Materials area 1218 | -9/Materials | Evolved 2 slots: Propulsion x2 1352 | -9/Materials | Core integrity fell below 50% 1375 | -9/Materials | Core integrity fell below 20% 1408 | -9/Materials | Lost 10 parts (2p4n1u3w) 1413 | -9/Materials | Destroyed by G-34 Mercenary with Small Laser Last Messages --------------- 01348_ Critical hit (Burn: +37). 01351_ K-01 Serf collects debris. 01352_ G-47 Trooper destroyed. 01356_ K-01 Serf collects debris. 01360_ G-34 Mercenary destroyed. 01362_ K-01 Serf collects debris. 01371_ Imp. Heat Sink destroyed. 01373_ K-01 Serf collects debris. 01377_ Sml. Laser destroyed. 01380_ K-01 Serf collects debris. 01385_ Acquired Particle Gun. 01386_ K-01 Serf collects debris. 01389_ Lgt. Treads melted. 01389_ Y-45 Defender destroyed. 01389_ W-16 Scout sends out distress signal. 01389_ K-01 Serf collects debris. 01391_ Acquired 20 matter. 01394_ K-01 Serf collects debris. 01399_ Acquired Sml. Laser. 01402_ K-01 Serf collects debris. Map ----- +----------------------------------------------------+ | | | | | | | | | | | | | | | | | | | | | | | | | | | ????????????????????????????????????????????????? | | ????????????????????????????????????????????????? | | ????????????????????????????????????????????????? | | ????????????????????????????????????????????????? | | ????????????????????????????????????????????????? | | ??????????????????????????######????????????????? | | ???????????###+#########+## #????????????????? | | ???????????# T ^ #????????????????? | | ???????????? #????????????????? | | ??????????????# [[! #????????????????? | | ??????????????# [[! #########?????????? | | ??????????????# [! # #?????????? | | ??????????????# @ k #?????????? | | ??????????????# [%% # #?????????? | | ??????????????# w% %[ggg#########?????????? | | ??????????????# !==!##/############???????? | | ??????????????# ! %# #???????? | | ???????? !# #???????? | | ???????/ # #???????? | | ???????#### " " # #???????? | | ??????????# """ # #???????? | | ??????????# "" # #???????? | | ?????????# w #########/#####???????? | | ????????? # # #???????????? | | ????????? # " # #???????????? | | ?????????? #######+### """ # #???????????? | | ?????????? ?????? ?# """ # ####### ##??? | | ????????????###??????? ""?# """ # #??? | | ?????????????????????? T"?# "" + #??? | | ?????????????????????? ???# """ # #??? | | ?????????????????????? ???# "" ######## +??? | | ??????????????????????????# """ #???????? #??? | | ??????????????????????????# " #??????????#??? | | ??????????????????????????# #?????????????? | | ??????????????????+???????###+#####?????????????? | | ?????????????????? ?????????# #?????????????????? | | ?????????????????? ?????????# #?????????????????? | +----------------------------------------------------+ Best States ------------- Heat Dissipation 42 Energy Generation 10 Energy Capacity 125 Matter Stores 300 Matter Capacity 300 Sight Range 16 Robot Scan Range 14 Terrain Scan Density 10 Evasion (%) 50 Item Schematics ----------------- None Robot Schematics ------------------ None Fabricated ------------ Nothing Alien Tech Used ----------------- None Achievements -------------- None Challenges ------------ None Game ------ Seed ThrusterNeutronCharge Manual? 0 Play Time 00:10:22 Cumulative 145.0 hours Start 2024.05.02 @ 16:20:57 End 2024.05.02 @ 16:29:59 Sessions 1 Manual Loads 0 Difficulty Rogue Special Mode None Game No. 280 Rogue 280 Adventurer 0 Explorer 0 Win Type - Total 0 Types 0/0/0/0/0/0/0/0/0 Lore% 36 Gallery% 49 Achievement% 36 Wizard Run 0 Options --------- Layout 1 ASCII 0 Keyboard 0 Movement Mouse Keybinds 0 Fullscreen 1 Font 24/Smallcaps Map View 50x40 Zoom Use 0% Tactical HUD 1 Map Filters NONE Filters NONE Steam 1 RUN: b3b8745d-33ff-4221-9517-1e5aff4d0277